[Event "Titled Tuesday Blitz April 11 Early 2023"]
[White "Novikov, Evgenij"]
[Black "Jaracz, Pawel"]
[WhiteFideId "4125380"]
[BlackFideId "1102222"]
[WhiteElo "2242"]
[BlackElo "2438"]
[Result "0-1"]
[Round "05"]
[TimeControl "180+2"]
[Date "2023.04.11"]
[WhiteClock "0:00:02"]
[BlackClock "0:00:12"]

1. d4 {[%clk 0:03:00]}  g6 {[%clk 0:02:57]} 2. g3 {[%clk 0:02:58]}  Bg7 {[%clk 0:02:57]} 3. Bg2 {[%clk 0:02:59]}  c5 {[%clk 0:02:57]} 4. Nf3 {[%clk 0:02:58]}  cxd4 {[%clk 0:02:56]} 5. Nxd4 {[%clk 0:02:58]}  Nc6 {[%clk 0:02:57]} 6. Nxc6 {[%clk 0:02:56]}  bxc6 {[%clk 0:02:56]} 7. O-O {[%clk 0:02:56]}  Ba6 {[%clk 0:02:53]} 8. Nd2 {[%clk 0:02:46]}  Nf6 {[%clk 0:02:52]} 9. Rb1 {[%clk 0:02:40]}  O-O {[%clk 0:02:51]} 10. b3 {[%clk 0:02:20]}  d5 {[%clk 0:02:50]} 11. Bb2 {[%clk 0:02:14]}  Qa5 {[%clk 0:02:38]} 12. a3 {[%clk 0:01:59]}  Rfd8 {[%clk 0:02:37]} 13. Re1 {[%clk 0:01:59]}  c5 {[%clk 0:02:23]} 14. e3 {[%clk 0:01:34]}  Rac8 {[%clk 0:02:21]} 15. b4 {[%clk 0:01:27]}  Qa4 {[%clk 0:02:17]} 16. c3 {[%clk 0:01:17]}  Qe8 {[%clk 0:02:05]} 17. Qb3 {[%clk 0:01:11]}  Bd3 {[%clk 0:02:02]} 18. Rbc1 {[%clk 0:01:05]}  c4 {[%clk 0:02:02]} 19. Qd1 {[%clk 0:01:02]}  e5 {[%clk 0:02:00]} 20. a4 {[%clk 0:00:59]}  e4 {[%clk 0:01:57]} 21. Nf1 {[%clk 0:00:49]}  h5 {[%clk 0:01:57]} 22. h3 {[%clk 0:00:46]}  Bh6 {[%clk 0:01:50]} 23. Ra1 {[%clk 0:00:39]}  a6 {[%clk 0:01:44]} 24. Ba3 {[%clk 0:00:35]}  h4 {[%clk 0:01:41]} 25. g4 {[%clk 0:00:34]}  Nh7 {[%clk 0:01:41]} 26. b5 {[%clk 0:00:32]}  axb5 {[%clk 0:01:41]} 27. axb5 {[%clk 0:00:33]}  Qxb5 {[%clk 0:01:41]} 28. Be7 {[%clk 0:00:33]}  Bg5 {[%clk 0:01:17]} 29. Bxd8 {[%clk 0:00:33]}  Rxd8 {[%clk 0:01:17]} 30. f3 {[%clk 0:00:30]}  Bf6 {[%clk 0:01:16]} 31. Qd2 {[%clk 0:00:23]}  exf3 {[%clk 0:01:15]} 32. Bxf3 {[%clk 0:00:23]}  Ng5 {[%clk 0:01:16]} 33. Bg2 {[%clk 0:00:23]}  Qb3 {[%clk 0:01:02]} 34. Rac1 {[%clk 0:00:22]}  Kg7 {[%clk 0:01:02]} 35. Nh2 {[%clk 0:00:19]}  Ne4 {[%clk 0:01:02]} 36. Bxe4 {[%clk 0:00:18]}  dxe4 {[%clk 0:01:03]} 37. Qf2 {[%clk 0:00:14]}  Bxc3 {[%clk 0:00:53]} 38. g5 {[%clk 0:00:14]}  Be5 {[%clk 0:00:30]} 39. Ng4 {[%clk 0:00:13]}  Qb2 {[%clk 0:00:26]} 40. Qxh4 {[%clk 0:00:11]}  Rh8 {[%clk 0:00:26]} 41. Qf2 {[%clk 0:00:07]}  Rxh3 {[%clk 0:00:22]} 42. Qxb2 {[%clk 0:00:02]}  Bxb2 {[%clk 0:00:22]} 43. Nf2 {[%clk 0:00:01]}  Rg3+ {[%clk 0:00:20]} 44. Kh2 {[%clk 0:00:02]}  Rf3 {[%clk 0:00:21]} 45. Kg2 {[%clk 0:00:02]}  Bxc1 {[%clk 0:00:16]} 46. Rxc1 {[%clk 0:00:03]}  Rxe3 {[%clk 0:00:16]} 47. Ng4 {[%clk 0:00:03]}  Re2+ {[%clk 0:00:16]} 48. Kg3 {[%clk 0:00:03]}  Rb2 {[%clk 0:00:13]} 49. Nf6 {[%clk 0:00:03]}  Kf8 {[%clk 0:00:13]} 50. Ra1 {[%clk 0:00:02]}  Ke7 {[%clk 0:00:13]} 51. Kf4 {[%clk 0:00:01]}  c3 {[%clk 0:00:13]} 52. Ra7+ {[%clk 0:00:01]}  Kd6 {[%clk 0:00:13]} 53. Rd7+ {[%clk 0:00:01]}  Kc6 {[%clk 0:00:13]} 54. Ke5 {[%clk 0:00:01]}  c2 {[%clk 0:00:14]} 55. Rd8 {[%clk 0:00:02]}  Kc7 {[%clk 0:00:12]} 56. Rd7+ {[%clk 0:00:02]}  Kc8 {[%clk 0:00:13]} 57. Kd6 {[%clk 0:00:02]}  Rb6+ {[%clk 0:00:12]} 0-1


[Site "https://www.chess.com"]

[Event "Titled Tuesday Blitz April 11 Early 2023"]
[White "Mammadzada, Gunay"]
[Black "Pakleza, Zbigniew"]
[WhiteFideId "13403729"]
[BlackFideId "1119290"]
[WhiteElo "2396"]
[BlackElo "2410"]
[Result "0-1"]
[Round "05"]
[TimeControl "180+2"]
[Date "2023.04.11"]
[WhiteClock "0:00:02"]
[BlackClock "0:00:03"]

1. e4 {[%clk 0:02:55]}  d6 {[%clk 0:03:00]} 2. d4 {[%clk 0:02:53]}  Nf6 {[%clk 0:03:01]} 3. Nc3 {[%clk 0:02:53]}  c6 {[%clk 0:03:01]} 4. f4 {[%clk 0:02:52]}  Qb6 {[%clk 0:03:02]} 5. Nf3 {[%clk 0:02:51]}  Bg4 {[%clk 0:03:02]} 6. a3 {[%clk 0:02:39]}  e5 {[%clk 0:03:00]} 7. Be3 {[%clk 0:02:24]}  Bxf3 {[%clk 0:03:00]} 8. gxf3 {[%clk 0:02:23]}  Nbd7 {[%clk 0:02:52]} 9. Bc4 {[%clk 0:01:42]}  Nh5 {[%clk 0:02:44]} 10. fxe5 {[%clk 0:01:30]}  dxe5 {[%clk 0:02:44]} 11. Qd2 {[%clk 0:01:13]}  Qc7 {[%clk 0:02:06]} 12. O-O-O {[%clk 0:01:11]}  exd4 {[%clk 0:01:41]} 13. Bxd4 {[%clk 0:01:09]}  Bc5 {[%clk 0:01:32]} 14. Kb1 {[%clk 0:00:39]}  Bxd4 {[%clk 0:01:01]} 15. Qxd4 {[%clk 0:00:40]}  Ne5 {[%clk 0:01:02]} 16. Be2 {[%clk 0:00:31]}  O-O {[%clk 0:00:58]} 17. Qe3 {[%clk 0:00:30]}  Ng6 {[%clk 0:00:53]} 18. Qg5 {[%clk 0:00:28]}  Qe5 {[%clk 0:00:46]} 19. Qg4 {[%clk 0:00:16]}  Nhf4 {[%clk 0:00:34]} 20. Bc4 {[%clk 0:00:16]}  b5 {[%clk 0:00:35]} 21. Bb3 {[%clk 0:00:16]}  a5 {[%clk 0:00:36]} 22. h4 {[%clk 0:00:13]}  h5 {[%clk 0:00:35]} 23. Qd7 {[%clk 0:00:07]}  b4 {[%clk 0:00:21]} 24. axb4 {[%clk 0:00:05]}  axb4 {[%clk 0:00:22]} 25. Na4 {[%clk 0:00:05]}  c5 {[%clk 0:00:14]} 26. Rhg1 {[%clk 0:00:03]}  Ra6 {[%clk 0:00:06]} 27. Qb5 {[%clk 0:00:03]}  Rfa8 {[%clk 0:00:05]} 28. Rd7 {[%clk 0:00:02]}  Ne2 {[%clk 0:00:04]} 29. Re1 {[%clk 0:00:02]}  Nd4 {[%clk 0:00:04]} 30. Bxf7+ {[%clk 0:00:02]}  Kh7 {[%clk 0:00:03]} 31. Qxc5 {[%clk 0:00:03]}  Qxc5 {[%clk 0:00:03]} 32. Nxc5 {[%clk 0:00:02]}  Ra1# {[%clk 0:00:03]} 0-1


[Site "https://www.chess.com"]

[Event "Titled Tuesday Blitz April 11 Early 2023"]
[White "Garcia Pantoja, Roberto"]
[Black "Ginzburg, Yakov"]
[WhiteFideId "3509265"]
[BlackFideId "4157176"]
[WhiteElo "2542"]
[BlackElo "2305"]
[Result "0-1"]
[Round "05"]
[TimeControl "180+2"]
[Date "2023.04.11"]
[WhiteClock "0:00:01"]
[BlackClock "0:00:24"]

1. e4 {[%clk 0:02:05]}  c5 {[%clk 0:02:58]} 2. Nf3 {[%clk 0:02:02]}  e6 {[%clk 0:02:58]} 3. d4 {[%clk 0:02:02]}  cxd4 {[%clk 0:02:58]} 4. Nxd4 {[%clk 0:02:03]}  Nf6 {[%clk 0:02:59]} 5. Nc3 {[%clk 0:02:02]}  Nc6 {[%clk 0:02:59]} 6. Ndb5 {[%clk 0:02:01]}  Bb4 {[%clk 0:02:59]} 7. a3 {[%clk 0:02:00]}  Bxc3+ {[%clk 0:02:59]} 8. Nxc3 {[%clk 0:02:01]}  d5 {[%clk 0:03:00]} 9. exd5 {[%clk 0:02:02]}  exd5 {[%clk 0:03:00]} 10. Bd3 {[%clk 0:02:02]}  O-O {[%clk 0:03:00]} 11. O-O {[%clk 0:02:03]}  d4 {[%clk 0:02:59]} 12. Ne2 {[%clk 0:02:00]}  h6 {[%clk 0:02:57]} 13. Ng3 {[%clk 0:01:58]}  Bg4 {[%clk 0:02:51]} 14. f3 {[%clk 0:01:58]}  Be6 {[%clk 0:02:51]} 15. Re1 {[%clk 0:01:58]}  Qd5 {[%clk 0:02:48]} 16. Bf4 {[%clk 0:01:56]}  Rad8 {[%clk 0:02:47]} 17. b4 {[%clk 0:01:51]}  a6 {[%clk 0:02:46]} 18. Ne4 {[%clk 0:01:43]}  Nh5 {[%clk 0:02:33]} 19. Bd2 {[%clk 0:01:27]}  Ne5 {[%clk 0:02:14]} 20. g4 {[%clk 0:01:23]}  f5 {[%clk 0:01:44]} 21. gxh5 {[%clk 0:00:58]}  Nxd3 {[%clk 0:01:44]} 22. cxd3 {[%clk 0:00:57]}  fxe4 {[%clk 0:01:44]} 23. fxe4 {[%clk 0:00:57]}  Qe5 {[%clk 0:01:42]} 24. Qe2 {[%clk 0:00:55]}  Bh3 {[%clk 0:01:38]} 25. Rac1 {[%clk 0:00:42]}  b6 {[%clk 0:01:02]} 26. Rc6 {[%clk 0:00:38]}  Rd5 {[%clk 0:00:33]} 27. Rg6 {[%clk 0:00:22]}  Qxh5 {[%clk 0:00:31]} 28. Qxh5 {[%clk 0:00:23]}  Rxh5 {[%clk 0:00:31]} 29. Rg3 {[%clk 0:00:22]}  g5 {[%clk 0:00:26]} 30. e5 {[%clk 0:00:16]}  g4 {[%clk 0:00:26]} 31. e6 {[%clk 0:00:12]}  Re5 {[%clk 0:00:26]} 32. Rxh3 {[%clk 0:00:05]}  Rxe1+ {[%clk 0:00:25]} 33. Bxe1 {[%clk 0:00:06]}  gxh3 {[%clk 0:00:26]} 34. Bh4 {[%clk 0:00:05]}  Rf3 {[%clk 0:00:23]} 35. e7 {[%clk 0:00:02]}  Kf7 {[%clk 0:00:23]} 36. a4 {[%clk 0:00:01]}  b5 {[%clk 0:00:23]} 37. axb5 {[%clk 0:00:01]}  axb5 {[%clk 0:00:24]} 0-1


[Site "https://www.chess.com"]

[Event "Titled Tuesday Blitz April 11 Early 2023"]
[White "Aldokhin, Ivan"]
[Black "Gogolev, Artem"]
[WhiteFideId "24115720"]
[BlackFideId "4116615"]
[WhiteElo "2322"]
[BlackElo "2182"]
[Result "1-0"]
[Round "05"]
[TimeControl "180+2"]
[Date "2023.04.11"]
[WhiteClock "0:01:23"]
[BlackClock "0:01:13"]

1. e4 {[%clk 0:03:00]}  c6 {[%clk 0:02:56]} 2. Nc3 {[%clk 0:03:00]}  d5 {[%clk 0:02:57]} 3. d4 {[%clk 0:03:01]}  dxe4 {[%clk 0:02:57]} 4. Nxe4 {[%clk 0:03:02]}  Nf6 {[%clk 0:02:58]} 5. Nxf6+ {[%clk 0:03:02]}  exf6 {[%clk 0:02:59]} 6. c3 {[%clk 0:03:01]}  Bd6 {[%clk 0:02:59]} 7. Bd3 {[%clk 0:03:02]}  O-O {[%clk 0:03:00]} 8. Ne2 {[%clk 0:03:03]}  Re8 {[%clk 0:02:59]} 9. Qc2 {[%clk 0:03:03]}  h5 {[%clk 0:02:58]} 10. O-O {[%clk 0:03:04]}  Nd7 {[%clk 0:02:51]} 11. Ng3 {[%clk 0:02:30]}  Bxg3 {[%clk 0:02:44]} 12. hxg3 {[%clk 0:02:26]}  Nf8 {[%clk 0:02:43]} 13. Bd2 {[%clk 0:02:22]}  g6 {[%clk 0:02:42]} 14. Rfe1 {[%clk 0:02:16]}  Rxe1+ {[%clk 0:02:39]} 15. Rxe1 {[%clk 0:02:15]}  f5 {[%clk 0:02:26]} 16. Bf4 {[%clk 0:02:01]}  Be6 {[%clk 0:02:16]} 17. b3 {[%clk 0:01:56]}  a5 {[%clk 0:02:09]} 18. Bf1 {[%clk 0:01:37]}  a4 {[%clk 0:02:05]} 19. Rd1 {[%clk 0:01:36]}  axb3 {[%clk 0:02:02]} 20. axb3 {[%clk 0:01:35]}  Bd5 {[%clk 0:01:31]} 21. c4 {[%clk 0:01:28]}  Be4 {[%clk 0:01:31]} 22. Qc3 {[%clk 0:01:28]}  Ne6 {[%clk 0:01:26]} 23. f3 {[%clk 0:01:23]}  Nxf4 {[%clk 0:01:13]} 24. gxf4 {[%clk 0:01:23]} 1-0


[Site "https://www.chess.com"]

[Event "Titled Tuesday Blitz April 11 Early 2023"]
[White "Dzagnidze, Nana"]
[Black "Shapiro, Viktor"]
[WhiteFideId "13601903"]
[BlackFideId "4175700"]
[WhiteElo "2406"]
[BlackElo "2152"]
[Result "1-0"]
[Round "05"]
[TimeControl "180+2"]
[Date "2023.04.11"]
[WhiteClock "0:01:05"]
[BlackClock "0:00:18"]

1. c4 {[%clk 0:03:00]}  Nf6 {[%clk 0:02:05]} 2. Nc3 {[%clk 0:02:58]}  c5 {[%clk 0:02:05]} 3. g3 {[%clk 0:02:57]}  Nc6 {[%clk 0:02:05]} 4. Bg2 {[%clk 0:02:57]}  d6 {[%clk 0:02:04]} 5. e3 {[%clk 0:02:57]}  e6 {[%clk 0:02:02]} 6. Nge2 {[%clk 0:02:56]}  Be7 {[%clk 0:02:02]} 7. O-O {[%clk 0:02:56]}  O-O {[%clk 0:02:02]} 8. d4 {[%clk 0:02:56]}  Bd7 {[%clk 0:01:59]} 9. b3 {[%clk 0:02:49]}  a6 {[%clk 0:01:58]} 10. Bb2 {[%clk 0:02:48]}  Rc8 {[%clk 0:01:58]} 11. d5 {[%clk 0:02:41]}  Na5 {[%clk 0:01:52]} 12. dxe6 {[%clk 0:02:34]}  fxe6 {[%clk 0:01:51]} 13. Nf4 {[%clk 0:02:24]}  Re8 {[%clk 0:01:43]} 14. Qe2 {[%clk 0:02:20]}  Bf8 {[%clk 0:01:35]} 15. Rfd1 {[%clk 0:02:13]}  Qc7 {[%clk 0:01:25]} 16. Ne4 {[%clk 0:02:09]}  Nxe4 {[%clk 0:01:24]} 17. Bxe4 {[%clk 0:02:10]}  Bc6 {[%clk 0:01:12]} 18. Bc2 {[%clk 0:01:44]}  Qf7 {[%clk 0:01:03]} 19. Qd3 {[%clk 0:01:38]}  Qf5 {[%clk 0:00:45]} 20. Qxf5 {[%clk 0:01:16]}  exf5 {[%clk 0:00:45]} 21. Bxf5 {[%clk 0:01:17]}  Rcd8 {[%clk 0:00:37]} 22. Bc3 {[%clk 0:01:15]}  b6 {[%clk 0:00:37]} 23. Ne6 {[%clk 0:01:15]}  Rb8 {[%clk 0:00:27]} 24. Nxf8 {[%clk 0:01:10]}  Rxf8 {[%clk 0:00:27]} 25. Be6+ {[%clk 0:01:09]}  Kh8 {[%clk 0:00:27]} 26. Rxd6 {[%clk 0:01:10]}  Bf3 {[%clk 0:00:24]} 27. Rd7 {[%clk 0:01:07]}  Rb7 {[%clk 0:00:18]} 28. Bxg7# {[%clk 0:01:05]} 1-0


[Site "https://www.chess.com"]

[Event "Titled Tuesday Blitz April 11 Early 2023"]
[White "Nguyen, Hong Anh"]
[Black "Petrov, Martin"]
[WhiteFideId "12406732"]
[BlackFideId "2911086"]
[WhiteElo "2054"]
[BlackElo "2430"]
[Result "0-1"]
[Round "05"]
[TimeControl "180+2"]
[Date "2023.04.11"]
[WhiteClock "0:00:08"]
[BlackClock "0:00:08"]

1. d4 {[%clk 0:02:59]}  d5 {[%clk 0:02:54]} 2. c4 {[%clk 0:02:57]}  e6 {[%clk 0:02:52]} 3. Nf3 {[%clk 0:02:57]}  dxc4 {[%clk 0:02:50]} 4. g3 {[%clk 0:02:56]}  Nf6 {[%clk 0:02:46]} 5. Bg2 {[%clk 0:02:56]}  a6 {[%clk 0:02:37]} 6. O-O {[%clk 0:02:54]}  Be7 {[%clk 0:02:37]} 7. Ne5 {[%clk 0:02:50]}  O-O {[%clk 0:02:34]} 8. Nxc4 {[%clk 0:02:49]}  Nc6 {[%clk 0:02:21]} 9. e3 {[%clk 0:02:45]}  Bd7 {[%clk 0:02:16]} 10. Nc3 {[%clk 0:02:33]}  Rb8 {[%clk 0:02:12]} 11. Ne5 {[%clk 0:02:21]}  Be8 {[%clk 0:02:07]} 12. Nxc6 {[%clk 0:02:13]}  Bxc6 {[%clk 0:02:08]} 13. e4 {[%clk 0:02:13]}  b5 {[%clk 0:02:01]} 14. a3 {[%clk 0:01:46]}  a5 {[%clk 0:01:59]} 15. Qc2 {[%clk 0:00:55]}  Qxd4 {[%clk 0:00:47]} 16. e5 {[%clk 0:00:47]}  Nd5 {[%clk 0:00:36]} 17. Rd1 {[%clk 0:00:44]}  Qc4 {[%clk 0:00:31]} 18. Bd2 {[%clk 0:00:24]}  b4 {[%clk 0:00:27]} 19. Nxd5 {[%clk 0:00:13]}  Bxd5 {[%clk 0:00:15]} 20. Qxc4 {[%clk 0:00:12]}  Bxc4 {[%clk 0:00:16]} 21. Rdc1 {[%clk 0:00:12]}  Bd3 {[%clk 0:00:10]} 22. Rxc7 {[%clk 0:00:12]}  bxa3 {[%clk 0:00:11]} 23. bxa3 {[%clk 0:00:10]}  Bd8 {[%clk 0:00:09]} 24. Rd7 {[%clk 0:00:10]}  Bb5 {[%clk 0:00:09]} 25. Ra7 {[%clk 0:00:09]}  Bb6 {[%clk 0:00:09]} 26. Re7 {[%clk 0:00:08]}  Rfc8 {[%clk 0:00:09]} 27. Rb1 {[%clk 0:00:06]}  Bc5 {[%clk 0:00:08]} 28. Bg5 {[%clk 0:00:02]}  Bxe7 {[%clk 0:00:07]} 29. Bxe7 {[%clk 0:00:02]}  Bd3 {[%clk 0:00:08]} 30. Rxb8 {[%clk 0:00:01]}  Rxb8 {[%clk 0:00:08]} 31. h4 {[%clk 0:00:02]}  Rb1+ {[%clk 0:00:08]} 32. Kh2 {[%clk 0:00:02]}  h5 {[%clk 0:00:08]} 33. Bf3 {[%clk 0:00:02]}  g6 {[%clk 0:00:08]} 34. Kg2 {[%clk 0:00:03]}  Re1 {[%clk 0:00:06]} 35. Bc5 {[%clk 0:00:02]}  Be4 {[%clk 0:00:05]} 36. Be3 {[%clk 0:00:02]}  Bxf3+ {[%clk 0:00:05]} 37. Kxf3 {[%clk 0:00:03]}  Ra1 {[%clk 0:00:06]} 38. Bc5 {[%clk 0:00:03]}  Rc1 {[%clk 0:00:05]} 39. Bd6 {[%clk 0:00:03]}  Rc4 {[%clk 0:00:05]} 40. Ke3 {[%clk 0:00:03]}  Kg7 {[%clk 0:00:05]} 41. Kd3 {[%clk 0:00:04]}  Ra4 {[%clk 0:00:05]} 42. Ke3 {[%clk 0:00:03]}  f5 {[%clk 0:00:04]} 43. Kf3 {[%clk 0:00:04]}  Kf7 {[%clk 0:00:04]} 44. Ke3 {[%clk 0:00:04]}  Ke8 {[%clk 0:00:04]} 45. Kf3 {[%clk 0:00:05]}  Kd7 {[%clk 0:00:04]} 46. Ke3 {[%clk 0:00:05]}  Kc6 {[%clk 0:00:05]} 47. Kf3 {[%clk 0:00:05]}  Kd5 {[%clk 0:00:06]} 48. Ke3 {[%clk 0:00:06]}  Re4+ {[%clk 0:00:06]} 49. Kf3 {[%clk 0:00:06]}  Kc4 {[%clk 0:00:06]} 50. Be7 {[%clk 0:00:06]}  Kb3 {[%clk 0:00:06]} 51. Bf8 {[%clk 0:00:07]}  Ra4 {[%clk 0:00:06]} 52. Be7 {[%clk 0:00:07]}  Re4 {[%clk 0:00:04]} 53. Bf8 {[%clk 0:00:07]}  Rxe5 {[%clk 0:00:04]} 54. Bd6 {[%clk 0:00:07]}  Re4 {[%clk 0:00:04]} 55. Kg2 {[%clk 0:00:06]}  e5 {[%clk 0:00:04]} 56. f3 {[%clk 0:00:07]}  Ra4 {[%clk 0:00:04]} 57. Bxe5 {[%clk 0:00:07]}  Rxa3 {[%clk 0:00:04]} 58. g4 {[%clk 0:00:07]}  fxg4 {[%clk 0:00:04]} 59. fxg4 {[%clk 0:00:07]}  Kc4 {[%clk 0:00:04]} 60. gxh5 {[%clk 0:00:07]}  gxh5 {[%clk 0:00:05]} 61. Bf6 {[%clk 0:00:07]}  Rb3 {[%clk 0:00:06]} 62. Kf2 {[%clk 0:00:07]}  a4 {[%clk 0:00:07]} 63. Ke2 {[%clk 0:00:06]}  a3 {[%clk 0:00:08]} 64. Kd2 {[%clk 0:00:07]}  a2 {[%clk 0:00:08]} 65. Kc2 {[%clk 0:00:08]}  Rf3 {[%clk 0:00:08]} 66. Bg7 {[%clk 0:00:08]}  Rb3 {[%clk 0:00:08]} 0-1


[Site "https://www.chess.com"]

[Event "Titled Tuesday Blitz April 11 Early 2023"]
[White "Chernobay, Artem"]
[Black "Rom, Jasper"]
[WhiteFideId "4167406"]
[BlackFideId "2023733"]
[WhiteElo "2474"]
[BlackElo "2233"]
[Result "1-0"]
[Round "05"]
[TimeControl "180+2"]
[Date "2023.04.11"]
[WhiteClock "0:00:33"]
[BlackClock "0:00:01"]

1. e4 {[%clk 0:03:00]}  e6 {[%clk 0:02:59]} 2. d4 {[%clk 0:02:59]}  d5 {[%clk 0:02:59]} 3. e5 {[%clk 0:02:59]}  c5 {[%clk 0:02:59]} 4. c3 {[%clk 0:02:59]}  Nc6 {[%clk 0:02:59]} 5. Nf3 {[%clk 0:02:59]}  Bd7 {[%clk 0:03:00]} 6. a3 {[%clk 0:02:53]}  Nge7 {[%clk 0:02:59]} 7. Bd3 {[%clk 0:02:32]}  cxd4 {[%clk 0:02:46]} 8. O-O {[%clk 0:02:25]}  Nf5 {[%clk 0:02:29]} 9. b4 {[%clk 0:02:16]}  dxc3 {[%clk 0:02:18]} 10. Nxc3 {[%clk 0:02:16]}  g6 {[%clk 0:02:12]} 11. Bg5 {[%clk 0:02:09]}  Be7 {[%clk 0:02:06]} 12. Bxe7 {[%clk 0:02:02]}  Qxe7 {[%clk 0:02:06]} 13. Bxf5 {[%clk 0:01:54]}  gxf5 {[%clk 0:02:04]} 14. Nb5 {[%clk 0:01:55]}  O-O {[%clk 0:02:03]} 15. Qd2 {[%clk 0:01:46]}  Kh8 {[%clk 0:01:57]} 16. Nbd4 {[%clk 0:01:23]}  Rg8 {[%clk 0:01:54]} 17. Rac1 {[%clk 0:01:18]}  Rac8 {[%clk 0:01:48]} 18. g3 {[%clk 0:01:12]}  a6 {[%clk 0:01:20]} 19. Rfe1 {[%clk 0:01:10]}  Na7 {[%clk 0:01:18]} 20. Qh6 {[%clk 0:01:03]}  Rg6 {[%clk 0:01:17]} 21. Qh5 {[%clk 0:00:58]}  Nc6 {[%clk 0:01:13]} 22. Nb3 {[%clk 0:00:50]}  b6 {[%clk 0:01:09]} 23. Rc3 {[%clk 0:00:49]}  f4 {[%clk 0:00:53]} 24. Rec1 {[%clk 0:00:49]}  fxg3 {[%clk 0:00:53]} 25. hxg3 {[%clk 0:00:50]}  f6 {[%clk 0:00:46]} 26. Nbd4 {[%clk 0:00:45]}  Na7 {[%clk 0:00:45]} 27. Rxc8+ {[%clk 0:00:44]}  Nxc8 {[%clk 0:00:45]} 28. exf6 {[%clk 0:00:38]}  Qxf6 {[%clk 0:00:44]} 29. Ne5 {[%clk 0:00:36]}  Be8 {[%clk 0:00:01]} 30. Rxc8 {[%clk 0:00:33]} 1-0


[Site "https://www.chess.com"]

[Event "Titled Tuesday Blitz April 11 Early 2023"]
[White "Vovk, Orest"]
[Black "Belov, Alexei"]
[WhiteFideId "14113490"]
[BlackFideId "4128206"]
[WhiteElo "2215"]
[BlackElo "2639"]
[Result "1-0"]
[Round "05"]
[TimeControl "180+2"]
[Date "2023.04.11"]
[WhiteClock "0:00:03"]
[BlackClock "0:00:12"]

1. h4 {[%clk 0:02:36]}  d5 {[%clk 0:02:57]} 2. h5 {[%clk 0:02:34]}  e5 {[%clk 0:02:56]} 3. h6 {[%clk 0:02:33]}  Nxh6 {[%clk 0:02:56]} 4. d4 {[%clk 0:02:33]}  Nc6 {[%clk 0:02:40]} 5. Bxh6 {[%clk 0:02:30]}  gxh6 {[%clk 0:02:40]} 6. dxe5 {[%clk 0:02:31]}  Nxe5 {[%clk 0:02:39]} 7. Nf3 {[%clk 0:02:30]}  Nxf3+ {[%clk 0:02:35]} 8. gxf3 {[%clk 0:02:31]}  Bg7 {[%clk 0:02:34]} 9. Nc3 {[%clk 0:02:29]}  c6 {[%clk 0:02:30]} 10. Qd3 {[%clk 0:02:15]}  Qb6 {[%clk 0:02:23]} 11. O-O-O {[%clk 0:02:14]}  Qxf2 {[%clk 0:02:15]} 12. e4 {[%clk 0:02:01]}  d4 {[%clk 0:02:09]} 13. e5 {[%clk 0:01:29]}  Bxe5 {[%clk 0:01:49]} 14. Kb1 {[%clk 0:00:53]}  Be6 {[%clk 0:01:44]} 15. Rxh6 {[%clk 0:00:42]}  O-O-O {[%clk 0:01:38]} 16. Ne4 {[%clk 0:00:27]}  Qe3 {[%clk 0:01:37]} 17. Rh5 {[%clk 0:00:21]}  Qxd3 {[%clk 0:01:34]} 18. Bxd3 {[%clk 0:00:20]}  f6 {[%clk 0:01:29]} 19. Rdh1 {[%clk 0:00:14]}  Rdg8 {[%clk 0:01:20]} 20. b3 {[%clk 0:00:13]}  Rg7 {[%clk 0:01:16]} 21. f4 {[%clk 0:00:09]}  Bxf4 {[%clk 0:01:13]} 22. Nxf6 {[%clk 0:00:09]}  h6 {[%clk 0:01:10]} 23. Rf1 {[%clk 0:00:06]}  Bg5 {[%clk 0:01:07]} 24. Ne4 {[%clk 0:00:06]}  Bd5 {[%clk 0:01:03]} 25. Nd6+ {[%clk 0:00:05]}  Kc7 {[%clk 0:01:02]} 26. Nf5 {[%clk 0:00:05]}  Rf7 {[%clk 0:01:00]} 27. Rg1 {[%clk 0:00:05]}  c5 {[%clk 0:00:58]} 28. Rgxg5 {[%clk 0:00:04]}  hxg5 {[%clk 0:00:48]} 29. Rxh8 {[%clk 0:00:04]}  Be6 {[%clk 0:00:47]} 30. Ng3 {[%clk 0:00:02]}  Rf3 {[%clk 0:00:47]} 31. Ne4 {[%clk 0:00:02]}  b6 {[%clk 0:00:41]} 32. Rh7+ {[%clk 0:00:02]}  Kc6 {[%clk 0:00:39]} 33. Nxg5 {[%clk 0:00:02]}  Bf5 {[%clk 0:00:38]} 34. Rh6+ {[%clk 0:00:03]}  Kb7 {[%clk 0:00:37]} 35. Rf6 {[%clk 0:00:02]}  Rxd3 {[%clk 0:00:33]} 36. Rxf5 {[%clk 0:00:02]}  Rd1+ {[%clk 0:00:32]} 37. Kb2 {[%clk 0:00:03]}  Rg1 {[%clk 0:00:33]} 38. Ne4 {[%clk 0:00:02]}  a5 {[%clk 0:00:30]} 39. Rf7+ {[%clk 0:00:02]}  Kc6 {[%clk 0:00:30]} 40. Rf2 {[%clk 0:00:03]}  Rg6 {[%clk 0:00:30]} 41. Nd2 {[%clk 0:00:04]}  b5 {[%clk 0:00:27]} 42. a3 {[%clk 0:00:04]}  Rg5 {[%clk 0:00:26]} 43. Nb1 {[%clk 0:00:04]}  Kd5 {[%clk 0:00:26]} 44. Rh2 {[%clk 0:00:04]}  c4 {[%clk 0:00:26]} 45. bxc4+ {[%clk 0:00:04]}  bxc4 {[%clk 0:00:27]} 46. Ka2 {[%clk 0:00:03]}  Kc5 {[%clk 0:00:26]} 47. Nd2 {[%clk 0:00:03]}  Kd5 {[%clk 0:00:25]} 48. Nf1 {[%clk 0:00:03]}  Rf5 {[%clk 0:00:23]} 49. Ng3 {[%clk 0:00:02]}  Rg5 {[%clk 0:00:24]} 50. Ne2 {[%clk 0:00:03]}  d3 {[%clk 0:00:23]} 51. Nc3+ {[%clk 0:00:03]}  Kd4 {[%clk 0:00:23]} 52. Kb2 {[%clk 0:00:03]}  Re5 {[%clk 0:00:21]} 53. Rh4+ {[%clk 0:00:03]}  Kc5 {[%clk 0:00:20]} 54. cxd3 {[%clk 0:00:03]}  cxd3 {[%clk 0:00:20]} 55. Rh2 {[%clk 0:00:03]}  Kc4 {[%clk 0:00:20]} 56. Rh4+ {[%clk 0:00:03]}  Kc5 {[%clk 0:00:20]} 57. Kc1 {[%clk 0:00:03]}  Re2 {[%clk 0:00:12]} 58. Nxe2 {[%clk 0:00:03]}  dxe2 {[%clk 0:00:12]} 59. Kd2 {[%clk 0:00:03]} 1-0


[Site "https://www.chess.com"]